fUSD/lending_fUSD_20251105
["ID","MTS","AMOUNT","RATE_DAILY","PERIOD"]
[393218297,1762335033538,-250.0,0.00017494,2]
[393218298,1762335033547,-250.0,0.00017494,2]
[393218299,1762335033557,-250.0,0.00017494,2]
[393218300,1762335033567,-250.0,0.00017494,2]
[393218301,1762335033576,-250.0,0.00017494,2]
[393218302,1762335033586,-163.3,0.00017495,2]
[393218303,1762335033595,-328.07,0.00017495,2]
[393218304,1762335033605,-500.0,0.00017504,2]
[393218305,1762335033614,-505.84507561,0.00017504,2]
[393218306,1762335033624,-381.21338808,0.00017504,2]
[393218307,1762335033633,-527.16571346,0.00017504,2]
[393218308,1762335033643,-500.0,0.00017504,2]
[393218309,1762335033653,-500.0,0.00017504,2]
[393218310,1762335033664,-500.0,0.00017504,2]
[393218311,1762335033676,-500.0,0.00017504,2]
[393218312,1762335033686,-242.08571964,0.00017504,2]
[393218313,1762335033696,-342.52502965,0.00017504,2]
[393218314,1762335033707,-500.0,0.00017504,2]
[393218315,1762335033721,-588.39813314,0.00017504,2]
[393218316,1762335033732,-500.0,0.00017504,2]
[393218317,1762335033742,-500.0,0.00017504,2]
[393218318,1762335033753,-511.24673023,0.00017504,2]
[393218319,1762335033763,-500.0,0.00017504,2]
[393218320,1762335033773,-500.0,0.00017504,2]
[393218321,1762335033784,-147606.1242862,0.00017505,2]
[393218322,1762335033797,-93450.52578201,0.00017505,2]
[393218323,1762335033810,-148624.67797432,0.00017505,2]
[393218324,1762335033821,-30318.67195747,0.00017505,2]
[393218325,1762335033831,-1000.0,0.00017505,2]
[393218326,1762335033842,-590.01678,0.00017515,2]
[393218327,1762335033852,-163.3,0.0001756,2]
[393218328,1762335033862,-1500.0,0.00017568,2]
[393218329,1762335033872,-590.01678,0.0001757,2]
[393218330,1762335033882,-4056.0,0.0001757,2]
[393218331,1762335033892,-500.40594089,0.00017573,2]
[393218332,1762335033901,-500.0,0.00017573,2]
[393218333,1762335033911,-500.0,0.00017573,2]
[393218334,1762335033920,-500.0,0.00017573,2]
[393218335,1762335033930,-500.0,0.00017573,2]
[393218336,1762335033940,-205.86369281,0.00017573,2]
[393218337,1762335033950,-500.39073057,0.00017573,2]
[393218338,1762335033959,-500.0,0.00017573,2]
[393218339,1762335033970,-500.0,0.00017573,2]
[393218340,1762335033979,-500.0,0.00017573,2]
[393218341,1762335033989,-500.0,0.00017573,2]
[393218342,1762335033999,-4056.0,0.00017595,2]
[393218343,1762335034233,-590.01678,0.00017625,2]
[393218344,1762335034244,-150.0,0.00017642,2]
[393218345,1762335034254,-500.0,0.00017647,2]
[393218346,1762335034264,-500.0,0.00017665,2]
[393218347,1762335034275,-590.01678,0.0001768,2]
[393218348,1762335034285,-1000.0,0.00017721,2]
[393218349,1762335034295,-1000.0,0.00017721,2]
[393218350,1762335034305,-1000.0,0.00017721,2]
[393218351,1762335034316,-1000.0,0.00017721,2]
[393218352,1762335034325,-1000.0,0.00017721,2]
[393218353,1762335034334,-1000.0,0.00017721,2]
[393218354,1762335034345,-500.0,0.00017721,2]
[393218355,1762335034354,-1000.0,0.00017721,2]
[393218356,1762335034364,-1000.0,0.00017721,2]
[393218357,1762335034373,-1000.0,0.00017721,2]
[393218358,1762335034383,-1000.0,0.00017721,2]
[393218359,1762335034393,-1000.0,0.00017722,2]
[393218360,1762335034402,-590.01678,0.00017735,2]
[393218361,1762335034412,-699.82067501,0.00017738,2]
[393218362,1762335034421,-150.0,0.00017747,2]
[393218363,1762335034430,-893.58488772,0.00017753,2]
[393218364,1762335034439,-328.07,0.00017768,2]
[393218365,1762335034448,-221.75791629,0.00017769,2]
[393218366,1762335034458,-1425.0,0.00017781,2]
[393218367,1762335034471,-590.01678,0.0001779,2]
[393218368,1762335034480,-1425.0,0.00017794,2]
[393218369,1762335034489,-1425.0,0.00017819,2]
[393218370,1762335034498,-520.0063,0.0001782,2]
[393218371,1762335034508,-607.18632361,0.00017831,2]
[393218372,1762335034517,-590.01678,0.00017845,2]
[393218373,1762335034526,-200.0,0.00017856,2]
[393218374,1762335034536,-1425.0,0.00017861,2]
[393218375,1762335034545,-1000.0,0.00017877,2]
[393218376,1762335034554,-180.47436555,0.00017887,2]
[393218377,1762335034563,-1000.0,0.00017889,2]
[393218378,1762335034572,-256.74502581,0.00017899,2]
[393218379,1762335034581,-428.89678196,0.000179,2]
[393218380,1762335034590,-590.01678,0.000179,2]
[393218381,1762335034599,-190.18293561,0.000179,2]
[393218382,1762335034609,-467.75995131,0.000179,3]
[393218383,1762335034618,-683.64763556,0.000179,2]
[393218384,1762335034627,-1019.0,0.00017906,2]
[393218385,1762335034637,-1425.0,0.0001791,2]
[393218386,1762335034646,-1257.84120585,0.00017911,2]
[393218387,1762335034655,-512.43340892,0.00017917,2]
[393218388,1762335034665,-520.00631,0.0001793,2]
[393218389,1762335034674,-150.0,0.00017934,2]
[393218390,1762335034683,-1425.0,0.00017934,2]
[393218391,1762335034693,-500.0,0.00017959,2]
[393218392,1762335034702,-3080.618,0.0001796,2]
[393218393,1762335034711,-175.104,0.00017961,2]
[393218394,1762335034723,-587.0,0.00017966,2]
[393218395,1762335034732,-587.0,0.00017966,2]
[393218396,1762335034743,-1000.0,0.0001797,2]
[393218397,1762335034752,-1275.49060352,0.0001797,2]
[393218398,1762335034762,-184.0,0.00017973,2]
[393218399,1762335034771,-500.0,0.00017973,2]
[393218400,1762335034781,-500.0,0.00017973,2]
[393218401,1762335034790,-500.0,0.00017973,2]
[393218402,1762335034801,-500.0,0.00017973,2]
[393218403,1762335034813,-500.0,0.00017982,2]
[393218404,1762335034823,-163.3,0.00017989,2]
[393218405,1762335034832,-945.52492229,0.00017989,2]
[393218406,1762335034842,-500.0,0.00017989,2]
[393218407,1762335034851,-163.3,0.0001799,2]
[393218408,1762335034860,-163.3,0.0001799,2]
[393218409,1762335034870,-163.3,0.0001799,2]
[393218410,1762335034879,-945.52492229,0.0001799,2]
[393218411,1762335034889,-945.52492229,0.0001799,2]
[393218412,1762335034897,-500.0,0.00017998,2]
[393218413,1762335034906,-500.0,0.00017998,2]
[393218414,1762335034916,-4371.0,0.00017999,2]
[393218415,1762335034925,-399.27468701,0.00017999,2]
[393218416,1762335034934,-295.33139851,0.00017999,2]
[393218417,1762335034943,-150.0,0.00017999,2]
[393218418,1762335034952,-150.0,0.00017999,2]
[393218419,1762335034962,-150.0,0.00017999,2]
[393218420,1762335034972,-150.0,0.00017999,2]
[393218421,1762335034982,-150.0,0.00017999,2]
[393218422,1762335034991,-150.0,0.00017999,2]
[393218423,1762335035000,-150.38503355,0.00017999,2]
[393218424,1762335035009,-150.0,0.00017999,2]
[393218425,1762335035018,-150.0,0.00017999,2]
[393218426,1762335035027,-282986.89816338,0.00017999,2]
[393218427,1762335035040,-1254.41808677,0.00017999,2]
[393218428,1762335035051,-6711.0,0.00017999,2]
[393218429,1762335035061,-318.10448703,0.00017999,2]
[393218430,1762335035073,-4434.64930299,0.00017999,2]
[393218431,1762335035087,-2695.0935315,0.00017999,2]
[393218432,1762335035099,-679.23578229,0.00017999,2]
[393218433,1762335036684,-500.0,0.00016461,2]
[393218434,1762335036694,-500.0,0.00016461,2]
[393218435,1762335036704,-195.98280455,0.00016461,2]
[393218436,1762335036715,-228.17259725,0.00016461,2]
[393218437,1762335036725,-500.0,0.00016461,2]
[393218438,1762335036735,-500.0,0.00016461,2]
[393218439,1762335036744,-466.39945573,0.00016461,2]
[393218440,1762335036753,-500.0,0.00016461,2]
[393218441,1762335036762,-500.0,0.00016461,2]
[393218442,1762335036771,-36044.05274668,0.00017999,2]
[393218451,1762335037875,-4141.776292,0.00017999,2]
[393218452,1762335037887,-1191.612,0.00017999,2]
[393218453,1762335037898,-619.3089963,0.00017999,2]
[393218454,1762335037910,-7477.4,0.00017999,2]
[393218455,1762335037929,-7359.95658048,0.00017999,2]
[393218456,1762335037987,-478.37891291,0.00017999,2]
[393218457,1762335037998,-508.11005083,0.00017999,2]
[393218458,1762335038009,-262.98768282,0.00017999,2]
[393218470,1762335040227,-1.7e-07,0.000179,2]
[393218472,1762335040258,-1057.53614399,0.000179,2]
[393218473,1762335040268,-90751.76151432,0.00017999,2]
[393218474,1762335040277,-150.0,0.00017999,2]
[393218475,1762335040287,-300.0,0.00017999,2]
[393218476,1762335040296,-666.0,0.00017999,2]
[393218477,1762335040304,-175.39314765,0.00017999,2]
[393218478,1762335040314,-300.0,0.00017999,2]
[393218479,1762335040323,-666.0,0.00017999,2]
[393218480,1762335040332,-150.0,0.00017999,2]
[393218481,1762335040342,-150.0,0.00017999,2]
[393218482,1762335040352,-150.0,0.00017999,2]
[393218483,1762335040362,-500.0,0.00017999,2]
[393218484,1762335040372,-500.0,0.00017999,2]
[393218485,1762335040381,-150.0,0.00017999,2]
[393218486,1762335040390,-500.0,0.00017999,2]
[393218487,1762335040400,-150.0,0.00017999,2]
[393218489,1762335040409,-500.0,0.00017999,2]
[393218490,1762335040418,-150.0,0.00017999,2]
[393218491,1762335040427,-150.0,0.00017999,2]
[393218492,1762335040436,-500.0,0.00017999,2]
[393218493,1762335040445,-150.0,0.00017999,2]
[393218494,1762335040454,-150.0,0.00017999,2]
[393218495,1762335040463,-150.0,0.00017999,2]
[393218496,1762335040472,-500.0,0.00017999,2]
[393218497,1762335040481,-500.0,0.00017999,2]
[393218498,1762335040490,-500.0,0.00017999,2]
[393218499,1762335040499,-500.0,0.00017999,2]
[393218500,1762335040508,-1057821.32567364,0.00018,2]
[393218501,1762335040517,-151.0,0.00018,2]
[393218502,1762335040527,-350.58973834,0.00018,2]
[393218503,1762335040535,-37457.905328,0.00018,2]
[393218504,1762335040544,-59002.0162987,0.00018,2]
[393218505,1762335040553,-200.0,0.00018,2]
[393218506,1762335040562,-16358.5223932,0.00018,2]
[393218508,1762335040571,-2436236.13235785,0.00018,2]
[393218510,1762335040583,-601.39062174,0.00018,2]
[393218511,1762335040594,-646.89926643,0.00018,2]
[393218512,1762335040615,-50817.105491,0.00018,2]
[393218520,1762335042996,-50774.90714287,0.00018,2]
[393218529,1762335046084,-334.78446987,0.00018,2]
[393218559,1762335804794,181.67,0.00013166,2]
[393218583,1762336111421,-166.66,0.00015582,2]
[393218584,1762336111455,-166.66,0.0001591,2]
[393218585,1762336111490,-274.13,0.00016179,2]
[393218586,1762336111523,-25.45759877,0.00016238,2]
[393218587,1762336141843,-141.20240123,0.00016238,2]
[393218588,1762336141864,-50.40780872,0.00016365,2]
[393218597,1762336232166,-165.39199251,0.00016365,2]
[393218598,1762336232177,-187.56289428,0.00016372,2]
[393218599,1762336232187,-200.0,0.00016399,2]
[393218600,1762336232198,-193.48,0.00016399,2]
[393218601,1762336232207,-1776.43,0.00016461,2]
[393218602,1762336232218,-1448.76,0.00016465,2]
[393218603,1762336232228,-1200.0,0.00016542,2]
[393218604,1762336232238,-3369.21,0.00016543,2]
[393218605,1762336232247,-166.66,0.00016566,2]
[393218606,1762336232256,-300.0,0.00016605,2]
[393218607,1762336232265,-300.0,0.00016605,2]
[393218608,1762336232274,-4404.65,0.00016606,2]
[393218609,1762336232283,-200.0,0.00016868,2]
[393218610,1762336232292,-166.66,0.00016895,2]
[393218611,1762336232302,-274.13,0.00017077,2]
[393218612,1762336232311,-166.66,0.00017223,2]
[393218613,1762336232320,-408.21884393,0.00017284,2]
[393218614,1762336232330,-550.0,0.00017294,2]
[393218615,1762336232339,-5991.68,0.00017295,2]
[393218616,1762336232349,-4961.17,0.00017295,2]
[393218617,1762336232358,-4244.53290776,0.00017295,2]
[393218618,1762336232371,-576.88174643,0.00017295,2]
[393218619,1762336232383,-396.09815507,0.00017295,2]
[393218620,1762336232399,-530.77777805,0.00017295,2]
[393218621,1762336232411,-4251.69941269,0.00017295,2]
[393218622,1762336232421,-150.99,0.00017295,2]
[393218623,1762336232431,-150.99,0.00017295,2]
[393218624,1762336232441,-1000.0,0.00017305,2]
[393218625,1762336232451,-12323.962,0.00017305,2]
[393218626,1762336232460,-2500.0,0.00017305,2]
[393218627,1762336232474,-234.02359962,0.00017305,2]
[393218628,1762336232485,-285.61395422,0.00017305,2]
[393218629,1762336232496,-234.02359961,0.00017371,2]
[393218630,1762336232505,-500.0,0.00017383,2]
[393218631,1762336232514,-500.0,0.00017383,2]
[393218632,1762336232523,-500.0,0.00017383,2]
[393218633,1762336232533,-285.61395417,0.0001739,2]
[393218634,1762336232543,-483.74506958,0.00017394,2]
[393218636,1762336238029,-1000.0,0.00017305,2]
[393218637,1762336238038,-16.25493042,0.00017394,2]
[393218638,1762336238048,-500.0,0.00017394,2]
[393218639,1762336238058,-500.0,0.00017394,2]
[393218640,1762336238068,-500.0,0.00017394,2]
[393218641,1762336238078,-500.0,0.00017394,2]
[393218642,1762336238087,-500.0,0.00017394,2]
[393218643,1762336238097,-151.0,0.00017394,2]
[393218644,1762336238106,-500.0,0.00017394,2]
[393218645,1762336238115,-500.0,0.00017394,2]
[393218646,1762336238125,-500.0,0.00017394,2]
[393218647,1762336238135,-500.0,0.00017394,2]
[393218648,1762336238144,-10.12684507,0.00017394,2]
[393218649,1762336238187,-489.87315493,0.00017394,2]
[393218650,1762336238197,-535.32668307,0.00017394,2]
[393218651,1762336238208,-250.0,0.00017394,2]
[393218652,1762336238217,-250.0,0.00017394,2]
[393218653,1762336238227,-250.0,0.00017394,2]
[393218654,1762336238237,-250.0,0.00017394,2]
[393218655,1762336238246,-250.0,0.00017394,2]
[393218656,1762336238256,-250.0,0.00017394,2]
[393218657,1762336238265,-250.0,0.00017394,2]
[393218658,1762336238275,-250.0,0.00017394,2]
[393218659,1762336238285,-250.0,0.00017394,2]
[393218660,1762336238294,-322.6107,0.00017394,2]
[393218662,1762336238304,-93.3569904,0.00017394,2]
[393218700,1762336240133,-563.14248685,0.00017305,2]
[393218702,1762336240143,-156.6430096,0.00017394,2]
[393218704,1762336240152,-250.0,0.00017394,2]
[393218706,1762336240162,-500.0,0.00017404,2]
[393218707,1762336240171,-324.90615575,0.00017404,2]
[393218708,1762336240181,-500.0,0.00017404,2]
[393218709,1762336240190,-500.0,0.00017404,2]
[393218711,1762336240200,-500.0,0.00017404,2]
[393218713,1762336240209,-262.11779168,0.00017404,2]
[393218715,1762336240220,-301.16203109,0.00017404,2]
[393218717,1762336240229,-256.36665031,0.00017404,2]
[393218719,1762336240239,-500.0,0.00017404,2]
[393218721,1762336240248,-500.0,0.00017404,2]
[393218724,1762336240257,-500.0,0.00017404,2]
[393218726,1762336240267,-500.0,0.00017404,2]
[393218728,1762336240276,-500.0,0.00017404,2]
[393218730,1762336240286,-500.0,0.00017404,2]
[393218732,1762336240295,-500.0,0.00017404,2]
[393218734,1762336240304,-500.0,0.00017404,2]
[393218736,1762336240313,-500.0,0.00017404,2]
[393218738,1762336240325,-500.0,0.00017404,2]
[393218740,1762336240335,-500.0,0.00017404,2]
[393218742,1762336240344,-208.58217,0.00017404,2]
[393218744,1762336240353,-500.0,0.00017404,2]
[393218746,1762336240362,-500.0,0.00017404,2]
[393218766,1762336240562,-500.0,0.00017404,2]
[393218767,1762336240573,-500.0,0.00017404,2]
[393218768,1762336240582,-500.0,0.00017404,2]
[393218770,1762336240591,-500.0,0.00017404,2]
[393218771,1762336240600,-500.0,0.00017404,2]
[393218772,1762336240609,-574.56585984,0.00017404,2]
[393218773,1762336240619,-500.0,0.00017404,2]
[393218774,1762336240629,-500.0,0.00017404,2]
[393218775,1762336240638,-500.0,0.00017404,2]
[393218776,1762336240647,-500.0,0.00017404,2]
[393218777,1762336240657,-500.0,0.00017404,2]
[393218778,1762336240667,-500.0,0.00017404,2]
[393218779,1762336240676,-500.0,0.00017404,2]
[393218780,1762336240685,-500.0,0.00017404,2]
[393218781,1762336240694,-500.0,0.00017404,2]
[393218782,1762336240705,-420000.0,0.00017405,2]
[393218783,1762336240715,-1000.0,0.00017405,2]
[393218784,1762336240724,-4601.0,0.00017418,2]
[393218785,1762336240733,-2791.0,0.00017421,2]
[393218786,1762336240742,-4293.0,0.00017434,2]
[393218787,1762336240752,-234.02359961,0.00017437,2]
[393218788,1762336240761,-501.72880029,0.00017443,2]
[393218789,1762336240771,-546.71084981,0.00017473,2]
[393218790,1762336240779,-500.0,0.00017473,2]
[393218791,1762336240788,-500.0,0.00017473,2]
[393218792,1762336240797,-500.0,0.00017473,2]
[393218793,1762336240806,-500.0,0.00017473,2]
[393218794,1762336240815,-346.48749089,0.00017473,2]
[393218795,1762336240825,-621.06284059,0.00017473,2]
[393218796,1762336240835,-554.9128886,0.00017473,2]
[393218797,1762336240853,-500.0,0.00017473,2]
[393218798,1762336240863,-500.0,0.00017473,2]
[393218799,1762336240872,-500.0,0.00017473,2]
[393218800,1762336240882,-570.58461787,0.00017473,2]
[393218801,1762336240892,-500.0,0.00017473,2]
[393218802,1762336240901,-500.0,0.00017473,2]
[393218803,1762336240910,-500.0,0.00017473,2]
[393218804,1762336240919,-589.5458966,0.00017473,2]
[393218805,1762336240929,-285.61395417,0.00017475,2]
[393218806,1762336240939,-234.02359961,0.00017503,2]
[393218807,1762336240948,-500.0,0.00017504,2]
[393218808,1762336240957,-500.0,0.00017504,2]
[393218809,1762336240968,-500.0,0.00017504,2]
[393218810,1762336240977,-500.0,0.00017504,2]
[393218811,1762336240987,-500.0,0.00017504,2]
[393218812,1762336240996,-500.0,0.00017504,2]
[393218813,1762336241005,-500.0,0.00017504,2]
[393218814,1762336241015,-500.0,0.00017504,2]
[393218815,1762336241024,-285.61395417,0.0001756,2]
[393218816,1762336241034,-234.02359961,0.00017569,2]
[393218817,1762336241044,-500.0,0.00017572,2]
[393218818,1762336241053,-175.39314765,0.00017572,2]
[393218819,1762336241063,-2791.0,0.00017579,2]
[393218820,1762336241073,-234.02359961,0.00017636,2]
[393218821,1762336241082,-285.61395417,0.00017645,2]
[393218822,1762336241092,-1000.0,0.00017668,2]
[393218823,1762336241101,-1000.0,0.000177,2]
[393218824,1762336241110,-234.02359961,0.00017702,2]
[393218825,1762336241120,-285.61395417,0.0001773,2]
[393218826,1762336241129,-500.0,0.00017731,2]
[393218827,1762336241138,-893.58488772,0.00017735,2]
[393218828,1762336241147,-4293.0,0.00017768,2]
[393218829,1762336241157,-234.02359961,0.00017768,2]
[393218830,1762336241166,-4602.0,0.0001777,2]
[393218831,1762336241175,-221.75791629,0.00017791,2]
[393218832,1762336241185,-1000.0,0.000178,2]
[393218833,1762336241194,-285.61395417,0.00017815,2]
[393218834,1762336241203,-2500.0,0.00017821,3]
[393218835,1762336241212,-2500.0,0.0001783,3]
[393218836,1762336241225,-234.02359961,0.00017834,2]
[393218837,1762336241235,-2500.0,0.00017838,3]
[393218838,1762336241245,-2500.0,0.00017847,3]
[393218839,1762336241254,-200.0,0.00017856,2]
[393218840,1762336241264,-2500.0,0.00017856,3]
[393218841,1762336241274,-2500.0,0.00017865,3]
[393218842,1762336241283,-2500.0,0.00017874,3]
[393218843,1762336241292,-2500.0,0.00017882,3]
[393218844,1762336241301,-2500.0,0.00017891,3]
[393218845,1762336241310,-160.2217,0.000179,2]
[393218846,1762336241320,-1812.62619889,0.000179,2]
[393218847,1762336241329,-234.02359961,0.000179,2]
[393218848,1762336241339,-2500.0,0.000179,3]
[393218849,1762336241349,-352.51204801,0.000179,2]
[393218850,1762336241359,-285.61395417,0.000179,2]
[393218851,1762336241369,-1472.0,0.00017929,2]
[393218852,1762336241379,-183.86,0.00017938,2]
[393218853,1762336241389,-3234.649,0.0001794,2]
[393218854,1762336241400,-1000.0,0.0001797,2]
[393218855,1762336241411,-216.03107045,0.00017973,2]
[393218856,1762336241421,-500.0,0.00017973,2]
[393218857,1762336241431,-500.0,0.00017973,2]
[393218858,1762336241441,-500.0,0.00017973,2]
[393218859,1762336241451,-500.0,0.00017973,2]
[393218860,1762336241460,-500.0,0.00017973,2]
[393218861,1762336241469,-500.0,0.00017973,2]
[393218862,1762336241478,-500.0,0.00017973,2]
[393218863,1762336241493,-500.0,0.00017973,2]
[393218864,1762336241503,-500.0,0.00017973,2]
[393218865,1762336241512,-500.0,0.00017973,2]
[393218866,1762336241522,-500.0,0.00017973,2]
[393218867,1762336241532,-500.0,0.00017973,2]
[393218868,1762336241542,-274.13,0.00017976,2]
[393218869,1762336241552,-306.2,0.00017989,2]
[393218870,1762336241562,-1456.94118479,0.00017997,2]
[393218871,1762336241573,-432.36280577,0.00017998,2]
[393218872,1762336241584,-500.0,0.00017998,2]
[393218873,1762336241594,-266.17310046,0.00017998,2]
[393218874,1762336241604,-300.0,0.00017999,2]
[393218875,1762336241614,-666.0,0.00017999,2]
[393218876,1762336241624,-150.0,0.00017999,2]
[393218877,1762336241634,-150.0,0.00017999,2]
[393218878,1762336241643,-151.92422519,0.00017999,2]
[393218879,1762336241654,-150.0,0.00017999,2]
[393218880,1762336241664,-150.0,0.00017999,2]
[393218881,1762336241674,-150.0,0.00017999,2]
[393218882,1762336241683,-300.0,0.00017999,2]
[393218883,1762336241692,-150.0,0.00017999,2]
[393218884,1762336241702,-150.0,0.00017999,2]
[393218885,1762336241711,-500.0,0.00017999,2]
[393218886,1762336241720,-150.0,0.00017999,2]
[393218887,1762336241730,-500.0,0.00017999,2]
[393218888,1762336241740,-500.0,0.00017999,2]
[393218889,1762336241749,-5890.33622538,0.00017999,2]
[393218890,1762336241758,-300.0,0.00017999,2]
[393218891,1762336241768,-666.0,0.00017999,2]
[393218892,1762336241776,-1000.0,0.00017999,2]
[393218893,1762336241786,-150.0,0.00017999,2]
[393218894,1762336241810,-150.0,0.00017999,2]
[393218895,1762336241825,-150.0,0.00017999,2]
[393218896,1762336241837,-500.0,0.00017999,2]
[393218897,1762336241853,-150.0,0.00017999,2]
[393218898,1762336241868,-150.0,0.00017999,2]
[393218899,1762336241883,-500.0,0.00017999,2]
[393218900,1762336241899,-150.0,0.00017999,2]
[393218901,1762336241910,-500.0,0.00017999,2]
[393218902,1762336241925,-150.0,0.00017999,2]
[393218903,1762336241941,-500.0,0.00017999,2]
[393218904,1762336241956,-266.84937166,0.00017999,2]
[393218905,1762336241971,-500.0,0.00017999,2]
[393218906,1762336241986,-354.09155293,0.00017999,2]
[393218907,1762336241999,-566.65685271,0.00017999,2]
[393218908,1762336242012,-500.0,0.00017999,2]
[393218909,1762336242027,-193.10660187,0.00017999,2]
[393218910,1762336242042,-3298.0,0.00018,2]
[393218911,1762336242056,-3477575.16848997,0.00018,2]
[393218912,1762336242080,-2893.67137947,0.00018,2]
[393218913,1762336242102,-1619.72114688,0.00018,2]
[393218914,1762336242130,-16561.5,0.00018,2]
[393218915,1762336242170,-2749.72837179,0.00018,2]
[393218930,1762336243448,-42984.0,0.00018,2]
[393218932,1762336246286,-346.56799974,0.00017305,2]
[393218933,1762336246662,-102933.97694698,0.00017305,2]
[393218934,1762336246677,-316719.45505328,0.00017305,2]
[393218935,1762336246690,-563.14248683,0.00017371,2]
[393218936,1762336246704,-2500.0,0.00017812,3]
[393218937,1762336246716,-11360.74223139,0.00018,2]
[393218942,1762336291663,-151.0,0.00015947,2]
[393218943,1762336291685,-17.0,0.00015963,2]
[393218944,1762336321587,-151.0,0.00015937,2]
[393218945,1762336321610,-64.60324455,0.00015963,2]
[393218946,1762336336382,-151.0,0.00015931,2]
[393218947,1762336336403,-23.17750513,0.00015963,2]
[393218948,1762336366377,-151.0,0.00015868,2]
[393218949,1762336366400,-5.6656154,0.00015892,2]
[393218952,1762336381442,-151.0,0.00015787,2]
[393218953,1762336381463,-53.53072762,0.00015892,2]
[393218954,1762336411456,-151.0,0.00015688,2]
[393218955,1762336411479,-127.85363718,0.00015734,2]
[393218956,1762336471446,-151.0,0.00015542,2]
[393218957,1762336471468,-151.0,0.00015601,2]
[393218958,1762336471489,-37.0889021,0.00015633,2]
[393218959,1762336486428,-151.0,0.00015526,2]
[393218960,1762336486448,-99.0,0.00015633,2]
[393218961,1762336516418,-151.0,0.00015586,2]
[393218962,1762336516440,-149.0,0.00015656,2]
[393218963,1762336562617,-2.0,0.00015656,2]
[393218964,1762336562642,-151.0,0.00015734,2]
[393218965,1762336562667,-151.0,0.00015842,2]
[393218966,1762336562688,-9.95616307,0.00015924,2]
[393218967,1762336591458,-141.04383693,0.00015924,2]
[393218968,1762336591489,-147.88934122,0.00016006,2]
[393219061,1762337037937,-151.0,0.00015859,2]
[393219062,1762337037960,-250.0,0.00016366,2]
[393219063,1762337037982,-1480.32227531,0.00016371,2]
[393219064,1762337042003,-150.0,0.00016471,2]
[393219065,1762337042026,-162.73,0.00016471,2]
[393219066,1762337042051,-11.85395261,0.00016692,2]
[393219067,1762337044261,-196.97417291,0.00016692,2]
[393219068,1762337047462,-122.27485148,0.00016692,2]
[393219069,1762337047486,-141.81779746,0.00016776,2]
[393219070,1762337051359,-443.17220254,0.00016776,2]
[393219071,1762337051383,-179.21801776,0.00016809,2]
[393219072,1762337053517,-253.02582709,0.00016809,2]
[393219073,1762337055114,-292.67699056,0.00016809,2]
[393219074,1762337071597,-165.75046569,0.00016809,2]
[393219075,1762337088826,-109.3286989,0.00016809,2]
[393219076,1762337088850,-300.0,0.00017203,2]
[393219077,1762337088872,-300.0,0.00017204,2]
[393219078,1762337088894,-1200.0,0.00017204,2]
[393219079,1762337088915,-1200.0,0.00017204,2]
[393219080,1762337088937,-4311.945,0.00017205,2]
[393219081,1762337088960,-951.1994,0.00017205,2]
[393219082,1762337088981,-2500.0,0.00017205,2]
[393219083,1762337089006,-150.99,0.00017205,2]
[393219084,1762337089028,-9999.99,0.00017205,2]
[393219085,1762337089049,-9999.99,0.00017205,2]
[393219086,1762337089072,-1133.34368307,0.00017215,2]
[393219087,1762337089094,-210.79869949,0.00017215,2]
[393219088,1762337089116,-166.66,0.00017258,2]